bitfinex/quotes_ETHUSD_20240703
["timestamp","ask_amount","ask_price","bid_price","bid_amount"]
[1720046247060,2.22790578,3304.7,3304.5,0.07577378]
[1720046247266,2.36862339,3304.6,3304.5,0.07577378]
[1720046249694,2.2280251,3304.7,3304.5,0.07577378]
[1720046249985,2.36864532,3304.6,3304.5,0.07577378]
[1720046250137,1.32057261,3304.6,3304.5,0.07577378]
[1720046250342,2.36864611,3304.6,3304.5,0.07577378]
[1720046252885,2.36868042,3304.6,3304.5,0.07577378]
[1720046253083,3.38245,3304.9,3304.5,0.07577378]
[1720046253251,2.22818599,3304.7,3304.5,0.07577378]
[1720046253439,2.36868925,3304.6,3304.5,0.07577378]
[1720046253773,2.36869063,3304.6,3304.5,0.07577378]
[1720046254371,4.59687662,3304.6,3304.5,0.07577378]
[1720046255634,2.36869063,3304.6,3304.5,0.07577378]
[1720046255835,4.59687662,3304.6,3304.5,0.07577378]
[1720046256074,0.90402045,3304.8,3304.5,0.07577378]
[1720046256274,6.67440876,3304.7,3304.5,0.07577378]
[1720046256583,2.36867875,3304.6,3304.5,0.07577378]
[1720046257073,2.36867875,3304.6,3304.3,3.02635]
[1720046257245,2.22833655,3304.7,3304.5,0.07579262]
[1720046257439,2.36867813,3304.6,3304.5,0.07579262]
[1720046257786,4.59701468,3304.6,3304.5,0.07579262]
[1720046257943,4.59701468,3304.6,3304.3,3.02635]
[1720046258146,2.36867813,3304.5,3304.3,3.02635]
[1720046258340,2.36867813,3304.4,3304.3,3.02635]
[1720046259290,2.36869643,3304.4,3304.3,3.02635]
[1720046259443,2.36869632,3304.4,3304.3,3.02635]
[1720046260345,2.36869632,3304.4,3304.3,3.92735]
[1720046261874,2.36869632,3304.4,3304.3,0.901]
[1720046262491,2.22827614,3304.6,3304.3,0.901]
[1720046262777,2.36873638,3304.5,3304.3,0.901]
[1720046262978,1.32062104,3304.4,3304.3,0.901]
[1720046263179,1.04811194,3304.4,3304.3,0.901]
[1720046263477,2.36873298,3304.4,3304.3,0.901]
[1720046264080,3.0259,3304.8,3304.3,0.901]
[1720046264280,2.2282283,3304.6,3304.3,0.901]
[1720046264485,2.36874433,3304.5,3304.3,0.901]
[1720046264680,2.36874433,3304.5,3304.0,3.02656]
[1720046264681,2.36874433,3304.4,3304.0,3.02656]
[1720046264888,3.23050119,3304.3,3304.1,0.901]
[1720046265049,1.32062737,3304.2,3304.0,3.02656]
[1720046265384,1.32062737,3304.2,3304.1,0.901]
[1720046265745,1.32063102,3304.2,3304.1,0.901]
[1720046267485,1.32063102,3304.2,3304.1,0.97682275]
[1720046268056,1.32063102,3304.2,3304.1,0.07582275]
[1720046268256,1.32063102,3304.2,3304.1,0.97682275]
[1720046268963,1.32065019,3304.2,3304.1,0.97682275]
[1720046271689,1.32065019,3304.2,3304.1,0.07582275]
[1720046272063,1.32065019,3304.2,3304.1,0.97682275]
[1720046272265,2.3359,3304.5,3304.1,0.97469979]
[1720046272496,1.90955289,3304.3,3304.1,0.97469979]
[1720046272657,1.32066709,3304.2,3304.1,0.97469979]
[1720046272858,13.88643558,3304.2,3304.1,0.07369979]
[1720046273088,14.96443783,3304.2,3304.1,0.07369979]
[1720046273293,5.40623,3303.7,3303.1,2.488]
[1720046273489,1.90843724,3303.4,3303.1,3.389]
[1720046273793,1.32066709,3303.3,3303.2,0.06367349]
[1720046273997,1.32066709,3303.3,3303.2,0.96467349]
[1720046274160,1.32066709,3303.3,3303.2,0.901]
[1720046274361,1.90843724,3303.5,3303.2,0.96467349]
[1720046274561,1.32106358,3303.4,3303.2,0.96467349]
[1720046274785,4.34824358,3303.4,3303.2,0.06367349]
[1720046274970,3.02775,3302.8,3301.9,3.02849]
[1720046275171,3.02775,3302.8,3301.8,2.495]
[1720046275172,1.27182337,3302.1,3302.0,0.06186235]
[1720046275374,0.95258511,3302.1,3301.9,0.901]
[1720046275577,1.270146,3302.1,3302.0,0.05974002]
[1720046275980,1.2702112,3302.1,3302.0,0.05974002]
[1720046276185,0.95164384,3302.1,3302.0,0.05974002]
[1720046284481,0.6322717,3302.4,3302.0,0.05974002]
[1720046285587,3.6602917,3302.5,3302.0,0.05974002]
[1720046285782,4.75543825,3302.5,3302.0,0.05974002]
[1720046286016,4.75543825,3302.5,3301.9,0.901]
[1720046286191,4.75518292,3302.5,3302.1,0.06018102]
[1720046286372,4.75518292,3302.5,3301.9,0.901]
[1720046286572,4.12316655,3302.5,3302.0,0.06018102]
[1720046292521,7.15126655,3302.5,3302.0,0.06018102]
[1720046292707,0.71512666,3302.4,3302.0,0.06018102]
[1720046293090,0.71512666,3302.4,3301.9,0.901]
[1720046293294,3.74325666,3302.4,3302.1,0.06018102]
[1720046293501,3.74325666,3302.4,3302.0,0.06105902]
[1720046293837,3.74325666,3302.4,3302.1,0.06105902]
[1720046294183,3.74325666,3302.4,3301.9,0.901]
[1720046294387,3.74325666,3302.4,3302.0,0.06105902]
[1720046296430,3.02819,3302.3,3302.0,0.06105902]
[1720046299304,3.02819,3302.3,3302.0,0.06105902]
[1720046303420,1.04888605,3302.2,3302.0,0.06105902]
[1720046303623,3.02828,3302.2,3302.0,0.06105902]
[1720046304367,1.04888625,3302.1,3302.0,0.06105902]
[1720046304625,7.81616188,3302.1,3302.0,0.06105902]
[1720046304824,7.81616188,3302.1,3301.6,0.901]
[1720046304825,3.02856,3301.9,3301.6,0.901]
[1720046305030,3.02856,3301.9,3301.7,0.06135317]
[1720046305227,1.04893572,3301.8,3301.7,0.06135317]
[1720046306543,1.04893451,3301.8,3301.7,0.06135317]
[1720046306836,3.02856,3301.9,3301.7,0.06135317]
[1720046307044,1.04893249,3301.8,3301.7,0.06135317]
[1720046308726,1.04893249,3301.8,3301.6,0.901]
[1720046309029,3.02856,3301.9,3301.7,0.06135317]
[1720046309234,1.04895584,3301.8,3301.7,0.06135317]
[1720046309537,1.04895567,3301.8,3301.7,0.06135317]
[1720046310299,3.02856,3301.9,3301.7,0.06135317]
[1720046310499,1.04894788,3301.8,3301.7,0.06135317]
[1720046311500,3.02856,3301.9,3301.7,0.06135317]
[1720046312332,1.04895466,3301.8,3301.7,0.06135317]
[1720046312795,3.02856,3301.9,3301.7,0.06135317]
[1720046313002,1.04895477,3301.8,3301.7,0.06135317]
[1720046313419,3.02856,3301.9,3301.7,0.06135317]
[1720046315102,1.04895794,3301.8,3301.7,0.06135317]
[1720046315426,3.02856,3301.9,3301.7,0.06135317]
[1720046316334,3.66025504,3301.9,3301.7,0.06135317]
[1720046317329,3.97610256,3301.9,3301.7,0.06135317]
[1720046318422,1.26339008,3301.8,3301.7,0.06135317]
[1720046319339,2.9115396,3301.8,3301.7,0.06135317]
[1720046319754,1.58986785,3301.8,3301.7,0.06135317]
[1720046320045,2.9115562,3301.8,3301.7,0.06135317]
[1720046320335,1.32167178,3301.8,3301.7,0.06135317]
[1720046320829,2.37061311,3301.8,3301.7,0.06135317]
[1720046321343,2.37061311,3301.8,3301.6,0.901]
[1720046321502,1.32167178,3301.7,3301.6,0.901]
[1720046321697,0.98867178,3301.7,3301.6,0.901]
[1720046321948,4.93642131,3301.9,3301.6,0.96255307]
[1720046322355,1.04894408,3301.8,3301.6,0.96255307]
[1720046322650,4.93860401,3301.9,3301.6,0.96255307]
[1720046322808,1.04894409,3301.8,3301.6,0.96255307]
[1720046323010,4.93860401,3301.9,3301.6,0.96255307]
[1720046323210,1.04894586,3301.8,3301.6,0.96255307]
[1720046323531,4.93860401,3301.9,3301.6,0.96255307]
[1720046323697,1.04894824,3301.8,3301.6,0.96255307]
[1720046323901,4.93860401,3301.9,3301.6,0.96255307]
[1720046324101,1.04894826,3301.8,3301.6,0.96255307]
[1720046324326,4.93860401,3301.9,3301.6,0.96255307]
[1720046324529,1.04894841,3301.8,3301.6,0.96255307]
[1720046324725,4.93860401,3301.9,3301.6,0.96255307]
[1720046324926,1.04894855,3301.8,3301.6,0.96255307]
[1720046325126,4.93860401,3301.9,3301.6,0.96255307]
[1720046325338,2.9589924,3301.8,3301.6,0.96255307]
[1720046325541,3.02856,3301.9,3301.6,0.96255307]
[1720046325835,2.95898484,3301.8,3301.6,0.96255307]
[1720046326014,1.91003278,3301.8,3301.6,0.901]
[1720046328936,1.91009293,3301.8,3301.6,0.901]
[1720046332107,1.91020861,3301.8,3301.6,0.901]
[1720046332528,3.02856,3301.9,3301.6,0.901]
[1720046332848,2.95919752,3301.8,3301.7,0.06155307]
[1720046333009,2.95919752,3301.8,3301.6,0.901]
[1720046333209,1.91025318,3301.8,3301.6,0.901]
[1720046334106,1.04895844,3301.7,3301.6,0.901]
[1720046334337,1.91025318,3301.8,3301.6,0.901]
[1720046334546,3.02856,3301.9,3301.6,0.96255307]
[1720046334547,2.95921094,3301.7,3301.6,0.96255307]
[1720046334708,2.95921094,3301.7,3301.6,0.901]
[1720046334907,2.95921094,3301.7,3301.6,0.96255307]
[1720046335445,2.95940671,3301.7,3301.6,0.96255307]
[1720046338557,1.91077696,3301.7,3301.6,0.96255307]
[1720046338736,2.95975048,3301.7,3301.6,0.96255307]
[1720046339862,1.04897352,3301.7,3301.6,0.96255307]
[1720046340061,2.95976645,3301.7,3301.6,0.96255307]
[1720046341056,3.02856,3301.9,3301.6,0.96255307]
[1720046341245,1.9108215,3301.7,3301.6,0.96255307]
[1720046341556,2.95979451,3301.7,3301.6,0.96255307]
[1720046341758,4.28150092,3301.7,3301.6,0.96255307]
[1720046344354,4.28165624,3301.7,3301.6,0.96255307]
[1720046344741,1.91104752,3301.7,3301.6,0.96255307]
[1720046344937,4.28173525,3301.7,3301.6,0.96255307]
[1720046347229,2.37068773,3301.7,3301.6,0.96255307]
[1720046347546,4.28199942,3301.7,3301.6,0.96255307]
[1720046347751,4.28198849,3301.7,3301.6,0.96255307]
[1720046347956,4.28198182,3301.7,3301.6,0.96255307]
[1720046348531,2.3706694,3301.7,3301.6,0.96255307]
[1720046350026,2.3706694,3301.7,3301.6,0.06155307]
[1720046350637,2.37071404,3301.7,3301.6,0.06155307]
[1720046353763,1.04898851,3301.7,3301.6,0.06155307]
[1720046353962,1.04898692,3301.7,3301.6,0.06155307]
[1720046354280,2.37071044,3301.7,3301.6,0.06155307]
[1720046354955,1.37071044,3301.7,3301.6,0.06155307]
[1720046355159,1.03771044,3301.7,3301.6,0.06155307]
[1720046355476,5.25869251,3301.9,3301.6,0.06155307]
[1720046357093,3.02856,3301.9,3301.6,0.06155307]
[1720046357292,5.258615,3301.9,3301.6,0.06155307]
[1720046357591,5.2585988,3301.9,3301.6,0.06155307]
[1720046360185,3.02856,3301.9,3301.6,0.06155307]
[1720046360377,5.25857781,3301.9,3301.6,0.06155307]
[1720046363396,5.25857221,3301.9,3301.6,0.06155307]
[1720046365198,1.04897008,3301.8,3301.6,0.06155307]
[1720046365503,1.04897008,3301.7,3301.6,0.06155307]
[1720046366637,2.23001221,3301.9,3301.6,0.06155307]
[1720046366814,1.04897626,3301.8,3301.6,0.06155307]
[1720046367117,1.04897626,3301.7,3301.6,0.06155307]
[1720046369206,1.04897626,3301.7,3301.3,5.45965]
[1720046369207,1.04897626,3301.7,3301.4,0.901]
[1720046369423,2.23001221,3301.9,3301.6,0.06153044]
[1720046369580,1.04897656,3301.8,3301.4,0.901]
[1720046369915,1.91148808,3301.6,3301.4,0.901]
[1720046370075,1.91148808,3301.6,3301.5,0.06153044]
[1720046370283,2.4195,3302.0,3301.5,0.06153044]
[1720046370514,1.91148844,3301.6,3301.5,0.06153044]
[1720046371510,1.91148844,3301.6,3301.5,3.73266848]
[1720046371711,1.91148844,3301.8,3301.6,2.4198]
[1720046372026,1.91148844,3301.9,3301.7,0.901]
[1720046372209,1.91148844,3301.9,3301.8,0.901]
[1720046372586,1.91148844,3301.9,3301.8,0.96249272]
[1720046372992,1.91092808,3301.9,3301.8,0.96249272]
[1720046373194,1.91092791,3301.9,3301.8,1.60358899]
[1720046373624,1.91071763,3301.9,3301.8,1.60358899]
[1720046375233,3.23228079,3301.9,3301.8,1.60358899]
[1720046376399,3.2320475,3301.9,3301.8,1.60358899]
[1720046379519,3.23173065,3301.9,3301.8,4.63222899]
[1720046379718,1.91017087,3301.9,3301.8,4.63222899]
[1720046379925,3.23173065,3301.9,3301.8,4.63222899]
[1720046382639,3.02793,3302.6,3301.8,4.63222899]
[1720046382945,1.90998508,3301.9,3301.8,3.99113272]
[1720046383145,1.32156612,3301.9,3301.8,3.99113272]
[1720046383346,3.23155251,3301.9,3301.8,3.99113272]
[1720046383711,1.32156612,3301.9,3301.8,3.99113272]
[1720046384025,3.23155251,3301.9,3301.8,3.99113272]
[1720046385447,1.32156612,3301.9,3301.8,3.99113272]
[1720046385829,1.32155712,3301.9,3301.8,3.99113272]
[1720046386026,5.6599259,3302.6,3301.8,3.99113272]
[1720046386027,3.02793,3302.6,3301.8,3.99113272]
[1720046386225,2.22829227,3302.1,3301.8,3.09013272]
[1720046386446,12.48167024,3302.4,3301.9,0.901]
[1720046386447,2.37056898,3302.0,3301.9,0.901]
[1720046386644,2.37052086,3302.0,3301.9,0.96235693]
[1720046386939,1.32159653,3302.0,3301.9,0.96235693]
[1720046387328,2.22822489,3302.2,3301.9,0.96235693]
[1720046387329,1.32159653,3302.1,3301.9,0.96235693]
[1720046387556,1.32159653,3302.0,3301.9,0.96235693]
[1720046387751,1.32159653,3302.1,3301.9,0.96235693]
[1720046388937,9.8495,3302.4,3301.9,0.96235693]
[1720046389130,2.22813958,3302.2,3301.9,0.96235693]
[1720046389354,2.37043941,3302.1,3301.9,0.96235693]
[1720046389557,1.32157269,3302.0,3301.9,0.96235693]
[1720046389929,1.32157269,3302.1,3301.9,0.96235693]
[1720046390132,1.32157269,3302.0,3301.9,0.96235693]
[1720046390658,1.32157269,3302.1,3301.9,0.96235693]
[1720046392365,1.32157315,3302.0,3301.9,0.96235693]
[1720046392838,1.90974733,3302.0,3301.9,0.96235693]
[1720046393037,3.23132048,3302.0,3301.9,0.96235693]
[1720046393240,1.32157315,3302.0,3301.9,0.96235693]
[1720046393444,3.5496462,3302.2,3301.9,0.96235693]
[1720046393655,1.90973719,3302.0,3301.9,0.96235693]
[1720046393870,3.23131034,3302.0,3301.9,0.96235693]
[1720046394159,1.32157315,3302.0,3301.9,0.96235693]
[1720046394365,1.32157315,3302.2,3301.9,0.96235693]
[1720046394527,1.90972616,3302.0,3301.9,0.96235693]
[1720046394723,3.23129931,3302.0,3301.9,0.96235693]
[1720046394939,1.32157315,3302.0,3301.9,0.96235693]
[1720046395166,3.23128946,3302.0,3301.9,0.96235693]
[1720046395327,1.90971631,3302.0,3301.9,0.96235693]
[1720046395528,3.23123542,3302.0,3301.9,0.96235693]
[1720046395929,3.23122756,3302.0,3301.9,0.96235693]
[1720046397333,1.32154602,3302.0,3301.9,0.96235693]
[1720046398770,1.32153436,3302.0,3301.9,0.96235693]
[1720046403379,1.90955474,3302.1,3301.9,0.96235693]
[1720046404952,1.32150102,3302.0,3301.9,0.96235693]
[1720046405142,1.32150102,3302.0,3301.9,3.99090693]
[1720046405344,1.3214937,3302.0,3301.9,3.99090693]
[1720046406444,1.3214937,3302.3,3301.9,3.99090693]
[1720046406642,1.04880088,3302.2,3301.9,3.99090693]
[1720046406859,1.3214937,3302.1,3301.9,3.99090693]
[1720046407051,1.3214937,3302.0,3301.9,3.99090693]
[1720046407256,1.3214937,3302.3,3301.9,3.99090693]
[1720046407454,2.37029489,3302.2,3301.9,3.99090693]
[1720046407747,1.3214937,3302.1,3301.9,3.99090693]
[1720046408047,1.3214937,3302.0,3301.9,3.99090693]
[1720046408245,1.3214937,3302.3,3301.9,3.99090693]
[1720046408442,2.37029653,3302.2,3301.9,3.99090693]
[1720046408675,1.3214937,3302.1,3301.9,3.99090693]
[1720046408881,1.3214937,3302.0,3301.9,3.99090693]
[1720046409176,7.43,3302.4,3301.9,3.99090693]
[1720046409476,2.37029311,3302.3,3301.9,3.99090693]
[1720046409653,2.37029311,3302.2,3301.9,3.99090693]
[1720046409847,3.23108872,3302.1,3301.9,3.99090693]
[1720046410048,1.32149165,3302.0,3301.9,3.99090693]
[1720046410277,1.32149008,3302.0,3301.9,3.99090693]
[1720046410442,7.43,3302.4,3301.9,3.99090693]
[1720046410443,1.32149008,3302.3,3301.9,3.99090693]
[1720046410644,2.37029136,3302.2,3301.9,3.99090693]
[1720046410857,1.32149008,3302.1,3301.9,3.99090693]
[1720046411095,1.32149008,3302.0,3301.9,3.99090693]
[1720046411520,1.32149008,3302.3,3301.9,3.99090693]
[1720046411678,2.37029395,3302.2,3301.9,3.99090693]
[1720046411861,1.32149008,3302.1,3301.9,3.99090693]
[1720046412063,1.32149008,3302.0,3301.9,3.99090693]
[1720046412262,1.32149008,3302.3,3301.9,3.99090693]
[1720046412489,2.37029236,3302.2,3301.9,3.99090693]
[1720046412707,1.32149116,3302.1,3301.9,3.99090693]
[1720046412858,1.32149116,3302.0,3301.9,3.99090693]
[1720046413282,1.32149144,3302.3,3301.9,3.99090693]
[1720046413591,1.04880108,3302.2,3301.9,3.92955]
[1720046413793,1.32149144,3302.1,3301.9,3.92955]
[1720046413991,1.32149144,3302.0,3301.9,3.92955]
[1720046414195,1.32149144,3302.3,3301.9,3.92955]
[1720046414367,1.04880201,3302.2,3301.9,3.92955]
[1720046414691,1.32149144,3302.1,3301.9,3.92955]
[1720046414896,1.32149144,3302.0,3301.9,3.92955]
[1720046416105,1.32149311,3302.0,3301.9,3.92955]
[1720046416308,1.32149311,3302.0,3301.9,6.34495]
[1720046416309,1.32149306,3302.0,3301.9,6.34495]
[1720046416506,1.32149306,3302.0,3301.9,7.282309]
[1720046416805,1.91011916,3302.2,3302.0,3.02846]
[1720046417040,1.32143667,3302.1,3302.0,3.02846]
[1720046417335,1.32143667,3302.1,3302.0,3.92946]
[1720046417607,1.32143667,3302.1,3302.0,3.99068115]
[1720046419325,7.43,3302.4,3302.0,3.99068115]
[1720046419326,7.43,3302.4,3302.1,3.02836]
[1720046419531,1.91016773,3302.2,3302.1,3.02836]
[1720046419827,3.23159967,3302.2,3302.1,3.99058115]
[1720046420191,3.23159967,3302.2,3302.1,7.01895115]
[1720046420405,3.23159967,3302.2,3302.1,8.26524127]
[1720046420406,1.32143194,3302.2,3302.1,8.26524127]
[1720046421622,1.32143194,3302.2,3302.1,7.01895115]
[1720046422509,7.43,3302.8,3302.4,3.02809]
[1720046422695,17.9496,3302.9,3302.4,3.02809]
[1720046422696,6.57986184,3302.7,3302.4,3.02809]
[1720046422908,2.37005123,3302.6,3302.5,0.06111556]
[1720046425874,3.43125256,3302.7,3302.5,0.06111556]
[1720046426049,2.37005872,3302.6,3302.5,0.06111556]
[1720046426577,2.37005816,3302.6,3302.5,0.06111556]
[1720046428935,1.20394618,3302.7,3302.5,0.06111556]
[1720046429136,2.37004325,3302.6,3302.5,0.06111556]
[1720046429335,2.37004551,3302.6,3302.5,0.06111556]
[1720046429647,2.4596,3302.9,3302.5,0.06111556]
[1720046429952,2.22692096,3302.7,3302.5,0.06111556]
[1720046430153,2.37004112,3302.6,3302.5,0.06111556]
[1720046431139,2.37004112,3302.6,3302.5,0.96211556]
[1720046431957,2.37004112,3302.6,3302.5,0.99262417]
[1720046432360,2.37001913,3302.6,3302.5,0.99262417]
[1720046435571,2.22674637,3302.8,3302.5,0.99262417]
[1720046435572,2.22343315,3302.8,3302.5,0.99262417]
[1720046435754,2.37002385,3302.7,3302.5,0.99262417]
[1720046436063,2.37001644,3302.6,3302.5,0.99262417]
[1720046438983,2.3700083,3302.6,3302.5,0.99262417]
[1720046439331,0.46830332,3302.8,3302.5,0.99262417]
[1720046439533,1.04867612,3302.6,3302.5,0.99262417]
[1720046439756,2.37000803,3302.6,3302.5,0.99262417]
[1720046441943,2.37001646,3302.6,3302.5,0.99262417]
[1720046442251,1.32133664,3302.6,3302.5,0.99262417]
[1720046442449,2.37001651,3302.6,3302.5,0.99262417]
[1720046445287,2.37000279,3302.6,3302.5,0.99262417]
[1720046448355,1.32133538,3302.6,3302.5,0.99262417]
[1720046448561,1.04867887,3302.6,3302.5,0.99262417]
[1720046448759,2.37001425,3302.6,3302.5,0.99262417]
[1720046449668,8.19907265,3302.6,3302.5,0.09162417]
[1720046449981,8.19907265,3302.6,3301.8,5.48024]
[1720046449982,10.42599119,3302.6,3301.8,5.48024]
[1720046450280,1.59066482,3302.0,3301.8,5.48024]
[1720046450477,1.59066482,3302.0,3301.9,0.901]
[1720046451060,1.32146462,3302.0,3301.9,3.3526]
[1720046451391,1.32146462,3302.0,3301.9,2.4516]
[1720046451677,1.32148321,3302.1,3301.9,3.3526]
[1720046451859,1.32148321,3302.1,3302.0,0.901]
[1720046452061,1.32148198,3302.1,3302.0,0.901]
[1720046452661,1.32148198,3302.1,3302.0,4.567584]
[1720046452870,1.32140833,3302.1,3302.0,4.567584]
[1720046453058,1.32141194,3302.2,3302.0,4.567584]
[1720046453252,1.32141194,3302.1,3302.0,3.666584]
[1720046453453,1.3214389,3302.2,3302.1,3.92937]
[1720046453656,1.32143473,3302.2,3302.1,3.92937]
[1720046454594,1.90880536,3302.3,3302.1,3.92937]
[1720046454892,1.32143296,3302.2,3302.1,3.92937]
[1720046455052,10.45776,3302.8,3302.1,6.38097]
[1720046455257,1.90897254,3302.3,3302.1,5.47997]
[1720046455486,1.32143131,3302.2,3302.1,5.47997]
[1720046455669,1.32143131,3302.2,3302.1,6.38097]
[1720046458090,1.32141506,3302.2,3302.1,6.38097]
[1720046460801,1.90906908,3302.3,3302.1,6.38097]
[1720046461093,1.32140331,3302.2,3302.1,6.38097]
[1720046462406,1.32140331,3302.2,3302.1,6.4578825]
[1720046463676,7.43,3302.8,3302.2,3.02821]
[1720046463880,1.90890829,3302.3,3302.2,3.02821]
[1720046464096,7.43,3302.8,3302.2,3.92921]
[1720046464299,2.22701824,3302.6,3302.4,0.901]
[1720046464463,2.37011584,3302.5,3302.4,0.901]
[1720046464885,7.43,3302.8,3302.4,0.901]
[1720046465104,2.22662294,3302.6,3302.4,0.901]
[1720046465269,2.37010302,3302.5,3302.4,0.901]
[1720046466178,2.37010302,3302.5,3302.3,3.02818]
[1720046466374,1.32138487,3302.4,3302.3,3.02818]
[1720046466666,1.32138487,3302.4,3302.3,3.92918]
[1720046466997,7.43,3302.8,3302.3,3.92918]
[1720046467298,2.22623597,3302.6,3302.3,3.92918]
[1720046467588,2.37010273,3302.5,3302.3,3.92918]
[1720046467793,1.3213888,3302.4,3302.3,3.92918]
[1720046468162,1.3213888,3302.5,3302.3,3.92918]
[1720046468365,2.22623597,3302.6,3302.3,3.92918]
[1720046468366,2.94692126,3302.4,3302.3,3.92918]
[1720046469770,2.61392126,3302.4,3302.3,3.92918]
[1720046470199,1.62553246,3302.4,3302.3,3.92918]
[1720046470493,2.22604438,3302.6,3302.3,3.92918]
[1720046470662,2.67424084,3302.5,3302.3,3.92918]
[1720046470864,1.62553246,3302.4,3302.3,3.92918]
[1720046471271,2.22604438,3302.6,3302.3,3.92918]
[1720046471501,2.67423329,3302.5,3302.3,3.92918]
[1720046471666,1.62553246,3302.4,3302.3,3.92918]
[1720046471866,2.22604438,3302.6,3302.3,3.92918]
[1720046472193,2.67423326,3302.5,3302.3,3.92918]
[1720046472500,1.62553246,3302.4,3302.3,3.92918]
[1720046473525,2.22604438,3302.6,3302.4,3.02802]
[1720046473810,1.90853716,3302.6,3302.5,3.92899]
[1720046474128,1.62574518,3302.6,3302.5,6.38869]
[1720046474409,1.90823069,3302.6,3302.5,6.38869]
[1720046474606,3.53397587,3302.6,3302.5,6.38869]
[1720046474811,3.53397587,3302.6,3302.5,7.01968659]
[1720046475180,1.62574518,3302.6,3302.5,7.01968659]
[1720046475383,1.90823069,3302.7,3302.6,3.02791]
[1720046475576,3.53369358,3302.7,3302.6,3.02791]
[1720046476390,1.62546289,3302.7,3302.6,3.02791]
[1720046477437,1.62546289,3302.7,3302.6,3.10464909]
[1720046478712,1.62546289,3302.7,3302.6,6.13255909]
[1720046479075,1.90706919,3302.8,3302.7,3.02782]
[1720046479275,1.90706919,3302.8,3302.7,3.92882]
[1720046479687,1.90706919,3302.8,3302.7,4.00555909]
[1720046480009,2.2245604,3303.1,3302.8,3.02773]
[1720046480226,1.62433628,3303.0,3302.8,3.02773]
[1720046480393,3.53076161,3302.9,3302.8,3.02773]
[1720046480794,1.62433628,3302.9,3302.8,3.02773]
[1720046481002,1.90639675,3302.9,3302.8,3.02773]
[1720046481317,3.53073303,3302.9,3302.8,3.02773]
[1720046483016,1.62433628,3302.9,3302.8,3.02773]
[1720046483215,1.90603719,3302.9,3302.8,3.02773]
[1720046483722,1.62433628,3302.9,3302.8,3.02773]
[1720046483893,3.53037347,3302.9,3302.8,3.02773]
[1720046484099,1.62433628,3302.9,3302.8,3.02773]
[1720046484407,1.62433628,3302.9,3302.8,5.42403]
[1720046486523,1.90523544,3303.0,3302.9,3.02762]
[1720046486703,1.90523544,3303.0,3302.9,3.92862]
[1720046486900,3.52839122,3303.0,3302.9,3.92862]
[1720046489093,1.62315578,3303.0,3302.9,3.92862]
[1720046489709,2.94364074,3303.0,3302.9,3.92862]
[1720046489909,1.6224981,3303.0,3302.9,3.92862]
[1720046490126,2.94362801,3303.0,3302.9,3.92862]
[1720046490492,1.32112991,3303.0,3302.9,3.92862]
[1720046490900,2.94992328,3303.0,3302.9,3.92862]
[1720046491399,1.32112991,3303.0,3302.9,3.92862]
[1720046492514,2.94975293,3303.0,3302.9,4.00506883]
[1720046492710,2.94976672,3303.0,3302.9,4.00506883]
[1720046493114,2.94976663,3303.0,3302.9,4.00506883]
[1720046494538,1.32114361,3303.0,3302.9,10.24962671]
[1720046494840,0.95226959,3303.5,3303.4,3.02718]
[1720046494994,0.95226959,3303.5,3303.4,12.25654]
[1720046495195,1.26969279,3304.1,3304.0,3.02663]
[1720046495425,1.26969279,3304.1,3304.0,6.95426]
[1720046495622,1.26969279,3304.1,3304.0,7.03050909]
[1720046496138,1.90317671,3304.6,3304.2,3.02637]
[1720046496317,1.58505668,3304.3,3304.2,3.02637]
[1720046496635,1.90317671,3304.7,3304.3,3.02635]
[1720046496926,1.58451352,3304.4,3304.3,3.02635]
[1720046497336,1.26693503,3304.4,3304.3,3.02635]
[1720046498306,1.26693503,3304.5,3304.3,3.02635]
[1720046499303,1.26693503,3304.6,3304.3,3.02635]
[1720046499604,1.26693503,3304.6,3304.4,3.02624]
[1720046499819,1.26693503,3304.7,3304.4,3.02624]
[1720046500013,1.26693503,3304.6,3304.4,3.02624]
[1720046500211,1.66761765,3304.7,3304.4,3.02624]
[1720046502015,0.40068262,3304.7,3304.4,3.92724]
[1720046502525,1.26693503,3304.8,3304.4,3.92724]
[1720046502707,3.69043503,3304.9,3304.6,3.02601]
[1720046502905,3.68796603,3304.9,3304.6,3.02601]
[1720046504129,0.9480925,3304.8,3304.6,3.02601]
[1720046505046,0.63189531,3304.7,3304.6,3.02601]
[1720046507338,0.63189531,3304.8,3304.6,3.02601]
[1720046507515,0.63189531,3304.8,3304.6,3.0993226]
[1720046509140,3.05539531,3304.9,3304.6,3.0993226]
[1720046511349,3.05539531,3304.9,3304.6,0.0733126]
[1720046511742,3.05539531,3304.9,3304.4,6.95348]
[1720046511944,3.05539531,3304.9,3304.7,0.0733126]
[1720046512117,3.05539531,3304.9,3304.4,6.95348]
[1720046512336,3.05539531,3304.9,3304.8,0.0733126]
[1720046512985,3.05539531,3304.9,3304.4,6.95348]
[1720046513189,3.05539531,3304.9,3304.8,0.0733126]
[1720046513340,3.05539531,3304.9,3304.4,6.95348]
[1720046513539,3.05539531,3304.9,3304.8,0.0733126]
[1720046513759,3.05539531,3304.9,3304.4,6.95348]
[1720046513956,3.05539531,3304.9,3304.8,0.0733126]
[1720046514448,3.05539531,3304.9,3304.4,3.92724]
[1720046514771,3.05539531,3304.9,3304.8,0.0733126]
[1720046515263,3.05372762,3304.9,3304.4,3.92724]
[1720046515457,3.05372762,3304.9,3304.8,0.0733126]
[1720046515698,3.05372762,3304.9,3304.4,0.901]
[1720046515699,3.12596991,3304.9,3304.4,0.901]
[1720046515972,3.7562228,3304.9,3304.4,0.901]
[1720046516269,0.63025289,3304.8,3304.4,0.901]
[1720046517443,0.63025289,3304.7,3304.4,0.901]
[1720046517782,0.63025289,3304.8,3304.4,0.901]
[1720046519752,0.63025289,3304.7,3304.4,0.901]
[1720046522585,0.63025289,3304.7,3304.5,0.07328247]
[1720046523664,0.63025289,3304.6,3304.5,0.07328247]
[1720046523878,0.63025289,3304.7,3304.5,0.07328247]
[1720046524490,1.67834545,3304.6,3304.5,0.07328247]
[1720046525213,1.67927525,3304.6,3304.5,0.07328247]
[1720046527469,0.6311833,3304.6,3304.5,0.07328247]
[1720046527674,1.6792709,3304.6,3304.5,0.07328247]
[1720046527877,0.6311833,3304.6,3304.5,0.07328247]
[1720046528169,1.04808754,3304.6,3304.5,0.07328247]
[1720046528768,1.6796027,3304.6,3304.5,0.07328247]
[1720046529076,1.04808754,3304.6,3304.5,0.07328247]
[1720046529272,1.99517846,3304.6,3304.5,0.07328247]
[1720046529667,1.04808754,3304.6,3304.5,0.07328247]
[1720046530292,1.99517846,3304.6,3304.5,0.07328247]
[1720046530532,2.88643852,3304.9,3304.5,0.07328247]